[Event "Titled Tuesday Blitz November 15 Early 2022"]
[White "Osiecki, Stanislaw"]
[Black "Deev, Andrei"]
[WhiteFideId "1102990"]
[BlackFideId "4102690"]
[WhiteElo "2088"]
[BlackElo "2279"]
[Result "0-1"]
[Round "09"]
[TimeControl "180+1"]
[Date "2022.11.16"]
[WhiteClock "0:00:03"]
[BlackClock "0:00:05"]

1. e4 {[%clk 0:03:00]}  d5 {[%clk 0:02:58]} 2. e5 {[%clk 0:03:00]}  d4 {[%clk 0:02:57]} 3. Bc4 {[%clk 0:02:59]}  c5 {[%clk 0:02:57]} 4. Nf3 {[%clk 0:02:59]}  e6 {[%clk 0:02:57]} 5. a4 {[%clk 0:02:58]}  Nc6 {[%clk 0:02:57]} 6. O-O {[%clk 0:02:58]}  Nge7 {[%clk 0:02:57]} 7. d3 {[%clk 0:02:56]}  Ng6 {[%clk 0:02:56]} 8. Re1 {[%clk 0:02:57]}  Be7 {[%clk 0:02:56]} 9. Qe2 {[%clk 0:02:56]}  O-O {[%clk 0:02:54]} 10. Qe4 {[%clk 0:02:57]}  Qc7 {[%clk 0:02:48]} 11. h4 {[%clk 0:02:55]}  h5 {[%clk 0:02:29]} 12. Bg5 {[%clk 0:02:49]}  Bxg5 {[%clk 0:02:11]} 13. hxg5 {[%clk 0:02:46]}  b6 {[%clk 0:02:09]} 14. c3 {[%clk 0:02:37]}  Bb7 {[%clk 0:02:07]} 15. Qe2 {[%clk 0:01:55]}  Rad8 {[%clk 0:02:05]} 16. g3 {[%clk 0:01:49]}  Na5 {[%clk 0:02:01]} 17. Nbd2 {[%clk 0:01:47]}  dxc3 {[%clk 0:01:35]} 18. bxc3 {[%clk 0:01:45]}  Nxc4 {[%clk 0:01:08]} 19. Nxc4 {[%clk 0:01:35]}  Qc6 {[%clk 0:01:01]} 20. Kg2 {[%clk 0:01:32]}  Rd7 {[%clk 0:00:53]} 21. Rad1 {[%clk 0:01:29]}  Rfd8 {[%clk 0:00:53]} 22. Nd6 {[%clk 0:01:17]}  Rxd6 {[%clk 0:00:50]} 23. exd6 {[%clk 0:01:17]}  Rxd6 {[%clk 0:00:50]} 24. Qe4 {[%clk 0:01:06]}  Qd7 {[%clk 0:00:42]} 25. Qe3 {[%clk 0:01:02]}  Qxa4 {[%clk 0:00:35]} 26. Kh2 {[%clk 0:00:55]}  Qc6 {[%clk 0:00:32]} 27. Kg2 {[%clk 0:00:45]}  Ne5 {[%clk 0:00:32]} 28. Qxe5 {[%clk 0:00:40]}  Qxf3+ {[%clk 0:00:32]} 29. Kf1 {[%clk 0:00:40]}  Qg2+ {[%clk 0:00:23]} 30. Ke2 {[%clk 0:00:40]}  Qf3+ {[%clk 0:00:18]} 31. Kf1 {[%clk 0:00:34]}  Rxd3 {[%clk 0:00:17]} 32. Rxd3 {[%clk 0:00:27]}  Qxd3+ {[%clk 0:00:13]} 33. Qe2 {[%clk 0:00:22]}  Qxc3 {[%clk 0:00:13]} 34. Qxh5 {[%clk 0:00:09]}  Qc4+ {[%clk 0:00:07]} 35. Kg1 {[%clk 0:00:08]}  Qd5 {[%clk 0:00:06]} 36. f3 {[%clk 0:00:08]}  Qxf3 {[%clk 0:00:05]} 37. Qxf3 {[%clk 0:00:07]}  Bxf3 {[%clk 0:00:06]} 38. Ra1 {[%clk 0:00:06]}  Bd5 {[%clk 0:00:06]} 39. Rxa7 {[%clk 0:00:04]}  b5 {[%clk 0:00:06]} 40. Ra6 {[%clk 0:00:03]}  b4 {[%clk 0:00:05]} 41. Rb6 {[%clk 0:00:03]}  b3 {[%clk 0:00:05]} 42. Kf2 {[%clk 0:00:03]}  c4 {[%clk 0:00:05]} 43. Ke3 {[%clk 0:00:04]}  c3 {[%clk 0:00:05]} 44. Kd3 {[%clk 0:00:04]}  c2 {[%clk 0:00:05]} 45. Kd2 {[%clk 0:00:04]}  Kh7 {[%clk 0:00:05]} 46. Kc3 {[%clk 0:00:03]}  Kg6 {[%clk 0:00:05]} 0-1


[Site "https://www.chess.com"]

[Event "Titled Tuesday Blitz November 15 Early 2022"]
[White "Osinovsky, Stepan"]
[Black "Demchenko, Anton"]
[WhiteFideId "4157354"]
[BlackFideId "4160258"]
[WhiteElo "2222"]
[BlackElo "2545"]
[Result "0-1"]
[Round "09"]
[TimeControl "180+1"]
[Date "2022.11.16"]
[WhiteClock "0:00:04"]
[BlackClock "0:00:16"]

1. Nf3 {[%clk 0:03:00]}  Nf6 {[%clk 0:02:52]} 2. g3 {[%clk 0:03:01]}  b6 {[%clk 0:02:50]} 3. Bg2 {[%clk 0:03:02]}  Bb7 {[%clk 0:02:49]} 4. O-O {[%clk 0:03:03]}  g6 {[%clk 0:02:47]} 5. d3 {[%clk 0:03:03]}  Bg7 {[%clk 0:02:46]} 6. e4 {[%clk 0:03:03]}  O-O {[%clk 0:02:46]} 7. e5 {[%clk 0:02:42]}  Ne8 {[%clk 0:02:45]} 8. Re1 {[%clk 0:02:40]}  c5 {[%clk 0:02:41]} 9. Nc3 {[%clk 0:02:39]}  Nc6 {[%clk 0:02:40]} 10. Bf4 {[%clk 0:02:37]}  Nc7 {[%clk 0:02:39]} 11. Qd2 {[%clk 0:02:37]}  Ne6 {[%clk 0:02:26]} 12. Bh6 {[%clk 0:02:37]}  d5 {[%clk 0:02:24]} 13. h4 {[%clk 0:02:13]}  Qd7 {[%clk 0:01:42]} 14. h5 {[%clk 0:02:11]}  Ned4 {[%clk 0:01:31]} 15. Bxg7 {[%clk 0:01:36]}  Kxg7 {[%clk 0:01:31]} 16. Ng5 {[%clk 0:00:26]}  e6 {[%clk 0:01:20]} 17. Qf4 {[%clk 0:00:20]}  Qe7 {[%clk 0:01:12]} 18. h6+ {[%clk 0:00:17]}  Kg8 {[%clk 0:01:09]} 19. Rac1 {[%clk 0:00:15]}  Rad8 {[%clk 0:01:05]} 20. a3 {[%clk 0:00:14]}  Bc8 {[%clk 0:00:54]} 21. Nd1 {[%clk 0:00:12]}  Nf5 {[%clk 0:00:39]} 22. c3 {[%clk 0:00:09]}  f6 {[%clk 0:00:35]} 23. exf6 {[%clk 0:00:08]}  Qxf6 {[%clk 0:00:36]} 24. Rc2 {[%clk 0:00:07]}  Nxh6 {[%clk 0:00:36]} 25. Qh4 {[%clk 0:00:05]}  Qg7 {[%clk 0:00:16]} 26. Nxe6 {[%clk 0:00:04]}  Bxe6 {[%clk 0:00:17]} 27. Rxe6 {[%clk 0:00:04]}  Nf5 {[%clk 0:00:16]} 0-1


[Site "https://www.chess.com"]

[Event "Titled Tuesday Blitz November 15 Early 2022"]
[White "Papayan, Oleg"]
[Black "Csonka, Balazs"]
[WhiteFideId "4193911"]
[BlackFideId "742910"]
[WhiteElo "2153"]
[BlackElo "2404"]
[Result "0-1"]
[Round "09"]
[TimeControl "180+1"]
[Date "2022.11.16"]
[WhiteClock "0:00:02"]
[BlackClock "0:00:22"]

1. e4 {[%clk 0:02:57]}  c5 {[%clk 0:02:59]} 2. Nf3 {[%clk 0:02:57]}  Nc6 {[%clk 0:02:59]} 3. d4 {[%clk 0:02:54]}  cxd4 {[%clk 0:03:00]} 4. Nxd4 {[%clk 0:02:55]}  Qb6 {[%clk 0:03:00]} 5. Nb3 {[%clk 0:02:52]}  Nf6 {[%clk 0:03:00]} 6. Bd3 {[%clk 0:02:30]}  e6 {[%clk 0:02:49]} 7. O-O {[%clk 0:02:28]}  a6 {[%clk 0:02:46]} 8. Be3 {[%clk 0:02:26]}  Qc7 {[%clk 0:02:45]} 9. f4 {[%clk 0:02:26]}  d6 {[%clk 0:02:44]} 10. Nc3 {[%clk 0:02:10]}  b5 {[%clk 0:02:41]} 11. a4 {[%clk 0:02:05]}  b4 {[%clk 0:02:39]} 12. Ne2 {[%clk 0:02:06]}  Be7 {[%clk 0:02:23]} 13. c3 {[%clk 0:01:51]}  O-O {[%clk 0:02:08]} 14. Rc1 {[%clk 0:01:49]}  Qb7 {[%clk 0:02:07]} 15. Nbd4 {[%clk 0:01:26]}  Bd7 {[%clk 0:01:54]} 16. Ng3 {[%clk 0:01:01]}  Rfd8 {[%clk 0:01:24]} 17. e5 {[%clk 0:00:27]}  dxe5 {[%clk 0:01:19]} 18. Nxc6 {[%clk 0:00:27]}  Bxc6 {[%clk 0:01:19]} 19. fxe5 {[%clk 0:00:28]}  Ne4 {[%clk 0:01:06]} 20. Bd4 {[%clk 0:00:12]}  bxc3 {[%clk 0:00:50]} 21. bxc3 {[%clk 0:00:11]}  Bc5 {[%clk 0:00:50]} 22. Nxe4 {[%clk 0:00:09]}  Bxe4 {[%clk 0:00:45]} 23. Rf4 {[%clk 0:00:03]}  Bxd4+ {[%clk 0:00:24]} 24. cxd4 {[%clk 0:00:02]}  Rxd4 {[%clk 0:00:25]} 25. Rxe4 {[%clk 0:00:02]}  Rxe4 {[%clk 0:00:24]} 26. Bxe4 {[%clk 0:00:03]}  Qxe4 {[%clk 0:00:24]} 27. Qd6 {[%clk 0:00:02]}  Qe3+ {[%clk 0:00:22]} 0-1


[Site "https://www.chess.com"]

[Event "Titled Tuesday Blitz November 15 Early 2022"]
[White "Parligras, Mircea-Emilian"]
[Black "Janaszak, Dawid"]
[WhiteFideId "1204297"]
[BlackFideId "1119206"]
[WhiteElo "2507"]
[BlackElo "2226"]
[Result "1/2-1/2"]
[Round "09"]
[TimeControl "180+1"]
[Date "2022.11.16"]
[WhiteClock "0:00:35"]
[BlackClock "0:00:22"]

1. d4 {[%clk 0:03:00]}  Nf6 {[%clk 0:02:59]} 2. c4 {[%clk 0:03:00]}  g6 {[%clk 0:02:58]} 3. Nc3 {[%clk 0:03:00]}  Bg7 {[%clk 0:02:59]} 4. e4 {[%clk 0:03:01]}  d6 {[%clk 0:03:00]} 5. h3 {[%clk 0:03:01]}  O-O {[%clk 0:02:59]} 6. Be3 {[%clk 0:03:02]}  Nbd7 {[%clk 0:02:53]} 7. Nf3 {[%clk 0:03:01]}  e5 {[%clk 0:02:52]} 8. d5 {[%clk 0:03:01]}  Nc5 {[%clk 0:02:52]} 9. Nd2 {[%clk 0:03:01]}  a5 {[%clk 0:02:51]} 10. g4 {[%clk 0:03:01]}  h5 {[%clk 0:02:50]} 11. Be2 {[%clk 0:02:58]}  Qe8 {[%clk 0:02:40]} 12. gxh5 {[%clk 0:02:44]}  Nxh5 {[%clk 0:02:39]} 13. Bxh5 {[%clk 0:02:43]}  gxh5 {[%clk 0:02:40]} 14. Rg1 {[%clk 0:02:35]}  Nd3+ {[%clk 0:02:08]} 15. Kf1 {[%clk 0:02:25]}  Bxh3+ {[%clk 0:02:08]} 16. Ke2 {[%clk 0:02:24]}  Nf4+ {[%clk 0:02:00]} 17. Bxf4 {[%clk 0:02:21]}  exf4 {[%clk 0:02:00]} 18. Kd3 {[%clk 0:02:15]}  Bg4 {[%clk 0:01:31]} 19. f3 {[%clk 0:02:08]}  Bd7 {[%clk 0:01:28]} 20. Qe2 {[%clk 0:01:54]}  Qe5 {[%clk 0:01:26]} 21. Qh2 {[%clk 0:01:38]}  Kh7 {[%clk 0:00:52]} 22. Rh1 {[%clk 0:01:03]}  Rh8 {[%clk 0:00:39]} 23. Rag1 {[%clk 0:01:01]}  Kg8 {[%clk 0:00:35]} 24. Qh4 {[%clk 0:00:59]}  Kf8 {[%clk 0:00:32]} 25. Kc2 {[%clk 0:00:52]}  Bf6 {[%clk 0:00:32]} 26. Qh2 {[%clk 0:00:51]}  h4 {[%clk 0:00:33]} 27. c5 {[%clk 0:00:45]}  h3 {[%clk 0:00:32]} 28. Nc4 {[%clk 0:00:39]}  Qd4 {[%clk 0:00:31]} 29. Qxf4 {[%clk 0:00:38]}  Rh4 {[%clk 0:00:28]} 30. Qg3 {[%clk 0:00:37]}  Qxc4 {[%clk 0:00:25]} 31. Qg8+ {[%clk 0:00:36]}  Ke7 {[%clk 0:00:26]} 32. Qxa8 {[%clk 0:00:37]}  Bxc3 {[%clk 0:00:24]} 33. cxd6+ {[%clk 0:00:36]}  cxd6 {[%clk 0:00:24]} 34. bxc3 {[%clk 0:00:36]}  Qxa2+ {[%clk 0:00:24]} 35. Kc1 {[%clk 0:00:36]}  Qa1+ {[%clk 0:00:23]} 36. Kc2 {[%clk 0:00:36]}  Qa2+ {[%clk 0:00:22]} 37. Kc1 {[%clk 0:00:35]}  Qa1+ {[%clk 0:00:22]} 38. Kc2 {[%clk 0:00:35]}  Qa2+ {[%clk 0:00:22]} 1/2-1/2


[Site "https://www.chess.com"]

[Event "Titled Tuesday Blitz November 15 Early 2022"]
[White "Petrovic, Aleksa"]
[Black "Winterberg, Lukas"]
[WhiteFideId "967629"]
[BlackFideId "24622702"]
[WhiteElo "2224"]
[BlackElo "2349"]
[Result "1-0"]
[Round "09"]
[TimeControl "180+1"]
[Date "2022.11.16"]
[WhiteClock "0:00:19"]
[BlackClock "0:01:07"]

1. d4 {[%clk 0:03:00]}  Nf6 {[%clk 0:02:57]} 2. c4 {[%clk 0:03:01]}  e6 {[%clk 0:02:57]} 3. Nf3 {[%clk 0:03:00]}  d5 {[%clk 0:02:58]} 4. Nc3 {[%clk 0:02:59]}  c5 {[%clk 0:02:56]} 5. cxd5 {[%clk 0:02:56]}  exd5 {[%clk 0:02:57]} 6. Bg5 {[%clk 0:02:52]}  Be6 {[%clk 0:02:56]} 7. Bxf6 {[%clk 0:02:52]}  Qxf6 {[%clk 0:02:56]} 8. e4 {[%clk 0:02:52]}  dxe4 {[%clk 0:02:56]} 9. Bb5+ {[%clk 0:02:52]}  Nc6 {[%clk 0:02:56]} 10. Nxe4 {[%clk 0:02:49]}  Qf4 {[%clk 0:02:56]} 11. Qe2 {[%clk 0:02:39]}  O-O-O {[%clk 0:02:54]} 12. Bxc6 {[%clk 0:02:31]}  bxc6 {[%clk 0:02:55]} 13. O-O {[%clk 0:02:25]}  cxd4 {[%clk 0:02:56]} 14. Qa6+ {[%clk 0:02:22]}  Kb8 {[%clk 0:02:55]} 15. Rfe1 {[%clk 0:02:02]}  Bd5 {[%clk 0:02:54]} 16. Nxd4 {[%clk 0:01:54]}  Bxe4 {[%clk 0:02:47]} 17. Rxe4 {[%clk 0:01:51]}  Qxe4 {[%clk 0:02:47]} 18. Nxc6+ {[%clk 0:01:51]}  Kc7 {[%clk 0:02:47]} 19. Nxd8 {[%clk 0:01:39]}  Kxd8 {[%clk 0:02:01]} 20. Rd1+ {[%clk 0:01:34]}  Kc7 {[%clk 0:02:00]} 21. Qxa7+ {[%clk 0:01:33]}  Kc8 {[%clk 0:01:55]} 22. Qd7+ {[%clk 0:01:21]}  Kb8 {[%clk 0:01:55]} 23. Qd8+ {[%clk 0:01:19]}  Ka7 {[%clk 0:01:55]} 24. Rd7+ {[%clk 0:01:19]}  Ka6 {[%clk 0:01:53]} 25. Qc8+ {[%clk 0:01:18]}  Kb6 {[%clk 0:01:47]} 26. Qb8+ {[%clk 0:01:17]}  Kc5 {[%clk 0:01:38]} 27. Rc7+ {[%clk 0:01:06]}  Kd5 {[%clk 0:01:28]} 28. Qb7+ {[%clk 0:01:01]}  Ke5 {[%clk 0:01:28]} 29. Qb5+ {[%clk 0:00:54]}  Ke6 {[%clk 0:01:17]} 30. Qe8+ {[%clk 0:00:27]}  Kf5 {[%clk 0:01:14]} 31. Rxf7+ {[%clk 0:00:24]}  Kg6 {[%clk 0:01:13]} 32. Re7+ {[%clk 0:00:19]}  Kf5 {[%clk 0:01:06]} 33. Rxe4 {[%clk 0:00:19]}  Bc5 {[%clk 0:01:07]} 1-0


[Site "https://www.chess.com"]

[Event "Titled Tuesday Blitz November 15 Early 2022"]
[White "Pg, Mohd Omar Ak Hira"]
[Black "Fathy, Elameir"]
[WhiteFideId "10500103"]
[BlackFideId "10600396"]
[WhiteElo "2184"]
[BlackElo "2311"]
[Result "0-1"]
[Round "09"]
[TimeControl "180+1"]
[Date "2022.11.16"]
[WhiteClock "0:00:52"]
[BlackClock "0:01:57"]

1. e4 {[%clk 0:03:00]}  c5 {[%clk 0:02:59]} 2. Nf3 {[%clk 0:03:00]}  d6 {[%clk 0:02:59]} 3. d4 {[%clk 0:02:58]}  cxd4 {[%clk 0:03:00]} 4. Nxd4 {[%clk 0:02:58]}  Nf6 {[%clk 0:03:00]} 5. Nc3 {[%clk 0:02:58]}  a6 {[%clk 0:03:01]} 6. Bc4 {[%clk 0:02:43]}  e6 {[%clk 0:02:51]} 7. Bb3 {[%clk 0:02:41]}  b5 {[%clk 0:02:51]} 8. O-O {[%clk 0:02:24]}  Be7 {[%clk 0:02:47]} 9. a3 {[%clk 0:01:32]}  Qb6 {[%clk 0:02:44]} 10. Be3 {[%clk 0:01:31]}  Qb7 {[%clk 0:02:44]} 11. Qf3 {[%clk 0:01:21]}  Nbd7 {[%clk 0:02:41]} 12. Qg3 {[%clk 0:01:17]}  O-O {[%clk 0:02:28]} 13. Bh6 {[%clk 0:01:08]}  Ne8 {[%clk 0:02:27]} 14. Bxe6 {[%clk 0:01:00]}  fxe6 {[%clk 0:02:23]} 15. Nxe6 {[%clk 0:01:00]}  Rf7 {[%clk 0:02:24]} 16. Nd5 {[%clk 0:01:00]}  Ne5 {[%clk 0:02:03]} 17. a4 {[%clk 0:00:53]}  Bxe6 {[%clk 0:02:02]} 18. Nf4 {[%clk 0:00:52]}  Bd7 {[%clk 0:01:57]} 0-1


[Site "https://www.chess.com"]

[Event "Titled Tuesday Blitz November 15 Early 2022"]
[White "Piesik, Piotr"]
[Black "Hadzovic, Amir"]
[WhiteFideId "1136194"]
[BlackFideId "14402300"]
[WhiteElo "2316"]
[BlackElo "2262"]
[Result "0-1"]
[Round "09"]
[TimeControl "180+1"]
[Date "2022.11.16"]
[WhiteClock "0:00:13"]
[BlackClock "0:00:10"]

1. Nf3 {[%clk 0:03:00]}  d5 {[%clk 0:02:59]} 2. g3 {[%clk 0:03:01]}  c6 {[%clk 0:02:56]} 3. Bg2 {[%clk 0:03:01]}  Nf6 {[%clk 0:02:57]} 4. O-O {[%clk 0:03:02]}  e6 {[%clk 0:02:57]} 5. d3 {[%clk 0:03:03]}  Be7 {[%clk 0:02:58]} 6. Nbd2 {[%clk 0:03:03]}  O-O {[%clk 0:02:59]} 7. e4 {[%clk 0:03:04]}  b6 {[%clk 0:02:54]} 8. Qe2 {[%clk 0:03:03]}  a5 {[%clk 0:02:50]} 9. e5 {[%clk 0:03:03]}  Ne8 {[%clk 0:02:46]} 10. Re1 {[%clk 0:03:04]}  f5 {[%clk 0:02:45]} 11. exf6 {[%clk 0:03:03]}  Bxf6 {[%clk 0:02:44]} 12. Ne5 {[%clk 0:03:03]}  c5 {[%clk 0:02:40]} 13. f4 {[%clk 0:02:57]}  Nd6 {[%clk 0:02:35]} 14. Ndf3 {[%clk 0:02:56]}  Nf5 {[%clk 0:02:28]} 15. c3 {[%clk 0:02:53]}  Ra7 {[%clk 0:02:26]} 16. a4 {[%clk 0:02:50]}  Re7 {[%clk 0:02:18]} 17. Ng4 {[%clk 0:02:50]}  Nc6 {[%clk 0:02:06]} 18. Nfe5 {[%clk 0:02:42]}  Bxe5 {[%clk 0:02:04]} 19. Nxe5 {[%clk 0:02:42]}  Nxe5 {[%clk 0:02:03]} 20. Qxe5 {[%clk 0:02:43]}  Qd6 {[%clk 0:01:57]} 21. Bd2 {[%clk 0:02:42]}  Qxe5 {[%clk 0:01:57]} 22. Rxe5 {[%clk 0:02:43]}  Bd7 {[%clk 0:01:55]} 23. g4 {[%clk 0:02:30]}  Nh4 {[%clk 0:01:50]} 24. Bh1 {[%clk 0:02:20]}  Ng6 {[%clk 0:01:47]} 25. Re2 {[%clk 0:02:10]}  Nxf4 {[%clk 0:01:47]} 26. Bxf4 {[%clk 0:02:10]}  Rxf4 {[%clk 0:01:47]} 27. h3 {[%clk 0:02:08]}  Ref7 {[%clk 0:01:39]} 28. b3 {[%clk 0:02:02]}  h5 {[%clk 0:00:58]} 29. gxh5 {[%clk 0:01:59]}  R7f5 {[%clk 0:00:58]} 30. Rd1 {[%clk 0:01:50]}  Rxh5 {[%clk 0:00:57]} 31. Kh2 {[%clk 0:01:47]}  d4 {[%clk 0:00:47]} 32. c4 {[%clk 0:01:45]}  e5 {[%clk 0:00:46]} 33. Bg2 {[%clk 0:01:43]}  Rfh4 {[%clk 0:00:46]} 34. Rde1 {[%clk 0:01:40]}  Bxh3 {[%clk 0:00:45]} 35. Rxe5 {[%clk 0:01:40]}  Bxg2+ {[%clk 0:00:35]} 36. Kxg2 {[%clk 0:01:40]}  Rh2+ {[%clk 0:00:34]} 37. Kg3 {[%clk 0:01:39]}  R5h3+ {[%clk 0:00:33]} 38. Kg4 {[%clk 0:01:40]}  Rxd3 {[%clk 0:00:30]} 39. Re8+ {[%clk 0:01:11]}  Kh7 {[%clk 0:00:29]} 40. Rf8 {[%clk 0:01:00]}  Rxb3 {[%clk 0:00:28]} 41. Ree8 {[%clk 0:00:59]}  Rg2+ {[%clk 0:00:26]} 42. Kh4 {[%clk 0:00:56]}  Rb1 {[%clk 0:00:20]} 43. Rh8+ {[%clk 0:00:55]}  Kg6 {[%clk 0:00:20]} 44. Kh3 {[%clk 0:00:54]}  Rg5 {[%clk 0:00:18]} 45. Kh2 {[%clk 0:00:50]}  Rb2+ {[%clk 0:00:18]} 46. Kh3 {[%clk 0:00:50]}  Rb3+ {[%clk 0:00:18]} 47. Kh2 {[%clk 0:00:51]}  d3 {[%clk 0:00:11]} 48. Re6+ {[%clk 0:00:47]}  Kf7 {[%clk 0:00:11]} 49. Rhe8 {[%clk 0:00:46]}  Rf5 {[%clk 0:00:09]} 50. R6e7+ {[%clk 0:00:41]}  Kg6 {[%clk 0:00:09]} 51. Rd7 {[%clk 0:00:40]}  Rf2+ {[%clk 0:00:08]} 52. Kg3 {[%clk 0:00:40]}  Re2 {[%clk 0:00:07]} 53. Red8 {[%clk 0:00:39]}  Rd2 {[%clk 0:00:06]} 54. Rd6+ {[%clk 0:00:38]}  Kh7 {[%clk 0:00:06]} 55. Kg4 {[%clk 0:00:36]}  Rd1 {[%clk 0:00:06]} 56. Kh5 {[%clk 0:00:34]}  d2 {[%clk 0:00:06]} 57. R8d7 {[%clk 0:00:28]}  Rh1+ {[%clk 0:00:06]} 58. Kg4 {[%clk 0:00:28]}  d1=Q+ {[%clk 0:00:06]} 59. Rxd1 {[%clk 0:00:28]}  Rxd1 {[%clk 0:00:07]} 60. Rxd1 {[%clk 0:00:28]}  Rb4 {[%clk 0:00:08]} 61. Rc1 {[%clk 0:00:25]}  Rxa4 {[%clk 0:00:08]} 62. Kf5 {[%clk 0:00:26]}  Rb4 {[%clk 0:00:08]} 63. Ke5 {[%clk 0:00:26]}  Kg6 {[%clk 0:00:08]} 64. Kd5 {[%clk 0:00:26]}  Kf5 {[%clk 0:00:09]} 65. Rf1+ {[%clk 0:00:26]}  Kg5 {[%clk 0:00:07]} 66. Rg1+ {[%clk 0:00:27]}  Kf6 {[%clk 0:00:08]} 67. Rf1+ {[%clk 0:00:26]}  Ke7 {[%clk 0:00:08]} 68. Rg1 {[%clk 0:00:26]}  a4 {[%clk 0:00:08]} 69. Rxg7+ {[%clk 0:00:26]}  Kf6 {[%clk 0:00:09]} 70. Ra7 {[%clk 0:00:25]}  Kf5 {[%clk 0:00:10]} 71. Rf7+ {[%clk 0:00:25]}  Kg4 {[%clk 0:00:10]} 72. Rf8 {[%clk 0:00:19]}  a3 {[%clk 0:00:10]} 73. Ra8 {[%clk 0:00:19]}  Rb3 {[%clk 0:00:11]} 74. Rg8+ {[%clk 0:00:13]}  Kf3 {[%clk 0:00:11]} 75. Re8 {[%clk 0:00:13]}  a2 {[%clk 0:00:10]} 76. Ra8 {[%clk 0:00:13]}  Rb2 {[%clk 0:00:10]} 0-1


[Site "https://www.chess.com"]

[Event "Titled Tuesday Blitz November 15 Early 2022"]
[White "Pinheiro, Iung Alicio de O."]
[Black "Rangel, Daniel"]
[WhiteFideId "2104350"]
[BlackFideId "2124475"]
[WhiteElo "2283"]
[BlackElo "2225"]
[Result "1-0"]
[Round "09"]
[TimeControl "180+1"]
[Date "2022.11.16"]
[WhiteClock "0:00:05"]
[BlackClock "0:00:06"]

1. e4 {[%clk 0:02:41]}  c5 {[%clk 0:02:59]} 2. Nf3 {[%clk 0:02:41]}  g6 {[%clk 0:02:59]} 3. h4 {[%clk 0:02:40]}  Bg7 {[%clk 0:02:58]} 4. h5 {[%clk 0:02:39]}  Nc6 {[%clk 0:02:59]} 5. Bc4 {[%clk 0:02:33]}  e6 {[%clk 0:02:56]} 6. Qe2 {[%clk 0:02:27]}  Nge7 {[%clk 0:02:45]} 7. d3 {[%clk 0:02:18]}  d5 {[%clk 0:02:42]} 8. Bb3 {[%clk 0:02:17]}  dxe4 {[%clk 0:02:35]} 9. dxe4 {[%clk 0:02:17]}  Nd4 {[%clk 0:02:35]} 10. Nxd4 {[%clk 0:02:15]}  cxd4 {[%clk 0:02:33]} 11. Bg5 {[%clk 0:02:05]}  h6 {[%clk 0:02:28]} 12. Bxe7 {[%clk 0:02:00]}  Qxe7 {[%clk 0:02:29]} 13. hxg6 {[%clk 0:02:01]}  fxg6 {[%clk 0:02:28]} 14. e5 {[%clk 0:01:49]}  Bd7 {[%clk 0:02:23]} 15. Nd2 {[%clk 0:01:47]}  O-O-O {[%clk 0:02:11]} 16. Nc4 {[%clk 0:01:36]}  Bc6 {[%clk 0:02:03]} 17. Nd6+ {[%clk 0:01:27]}  Kb8 {[%clk 0:02:01]} 18. O-O-O {[%clk 0:01:22]}  Rhf8 {[%clk 0:01:40]} 19. Rxd4 {[%clk 0:01:06]}  Qg5+ {[%clk 0:01:39]} 20. f4 {[%clk 0:01:03]}  Rxf4 {[%clk 0:01:38]} 21. Rxf4 {[%clk 0:01:03]}  Qxf4+ {[%clk 0:01:39]} 22. Kb1 {[%clk 0:01:04]}  Rf8 {[%clk 0:01:23]} 23. Nc4 {[%clk 0:00:43]}  Qf2 {[%clk 0:01:16]} 24. Qd3 {[%clk 0:00:41]}  Bxg2 {[%clk 0:01:09]} 25. Qd6+ {[%clk 0:00:37]}  Ka8 {[%clk 0:01:08]} 26. Rc1 {[%clk 0:00:38]}  Bd5 {[%clk 0:00:57]} 27. Na5 {[%clk 0:00:31]}  Qb6 {[%clk 0:00:43]} 28. Bxd5 {[%clk 0:00:30]}  exd5 {[%clk 0:00:27]} 29. Qxd5 {[%clk 0:00:27]}  Re8 {[%clk 0:00:26]} 30. Nc4 {[%clk 0:00:26]}  Qe6 {[%clk 0:00:23]} 31. Qe4 {[%clk 0:00:21]}  a6 {[%clk 0:00:18]} 32. Re1 {[%clk 0:00:21]}  g5 {[%clk 0:00:18]} 33. Nd6 {[%clk 0:00:20]}  Re7 {[%clk 0:00:18]} 34. a4 {[%clk 0:00:17]}  Qd7 {[%clk 0:00:16]} 35. Nc4 {[%clk 0:00:16]}  Qc7 {[%clk 0:00:15]} 36. a5 {[%clk 0:00:15]}  Qc5 {[%clk 0:00:14]} 37. e6 {[%clk 0:00:14]}  Ka7 {[%clk 0:00:13]} 38. Nb6 {[%clk 0:00:13]}  Rc7 {[%clk 0:00:11]} 39. e7 {[%clk 0:00:12]}  Qb5 {[%clk 0:00:10]} 40. Na4 {[%clk 0:00:09]}  Rc4 {[%clk 0:00:05]} 41. Qe3+ {[%clk 0:00:09]}  Bd4 {[%clk 0:00:04]} 42. Qxd4+ {[%clk 0:00:04]}  Rxd4 {[%clk 0:00:04]} 43. e8=Q {[%clk 0:00:05]}  Qxe8 {[%clk 0:00:04]} 44. Rxe8 {[%clk 0:00:05]}  Rxa4 {[%clk 0:00:05]} 45. Rh8 {[%clk 0:00:05]}  Rh4 {[%clk 0:00:06]} 46. c4 {[%clk 0:00:04]}  g4 {[%clk 0:00:06]} 47. c5 {[%clk 0:00:05]}  Rh1+ {[%clk 0:00:06]} 48. Kc2 {[%clk 0:00:05]}  h5 {[%clk 0:00:04]} 49. Rg8 {[%clk 0:00:05]}  Rh2+ {[%clk 0:00:03]} 50. Kc3 {[%clk 0:00:05]}  Rh3+ {[%clk 0:00:04]} 51. Kc4 {[%clk 0:00:05]}  g3 {[%clk 0:00:05]} 52. Rg7 {[%clk 0:00:05]}  h4 {[%clk 0:00:06]} 53. c6 {[%clk 0:00:05]}  Kb8 {[%clk 0:00:06]} 54. Rxb7+ {[%clk 0:00:04]}  Kc8 {[%clk 0:00:06]} 55. Rg7 {[%clk 0:00:05]}  Rh2 {[%clk 0:00:06]} 56. b4 {[%clk 0:00:05]}  g2 {[%clk 0:00:06]} 57. Kc5 {[%clk 0:00:06]}  h3 {[%clk 0:00:06]} 58. Kb6 {[%clk 0:00:06]}  g1=Q+ {[%clk 0:00:04]} 59. Rxg1 {[%clk 0:00:05]}  Rg2 {[%clk 0:00:05]} 60. Rf1 {[%clk 0:00:05]}  h2 {[%clk 0:00:06]} 61. Rf8# {[%clk 0:00:05]} 1-0


[Site "https://www.chess.com"]

[Event "Titled Tuesday Blitz November 15 Early 2022"]
[White "Raahul V S"]
[Black "Chernov, Mikhail"]
[WhiteFideId "25035525"]
[BlackFideId "24143170"]
[WhiteElo "2233"]
[BlackElo "2113"]
[Result "1-0"]
[Round "09"]
[TimeControl "180+1"]
[Date "2022.11.16"]
[WhiteClock "0:00:57"]
[BlackClock "0:00:50"]

1. b3 {[%clk 0:03:00]}  Nf6 {[%clk 0:02:59]} 2. Bb2 {[%clk 0:02:59]}  g6 {[%clk 0:03:00]} 3. g3 {[%clk 0:02:52]}  Bg7 {[%clk 0:03:00]} 4. Bg2 {[%clk 0:02:53]}  O-O {[%clk 0:03:00]} 5. Nf3 {[%clk 0:02:44]}  d5 {[%clk 0:02:59]} 6. O-O {[%clk 0:02:43]}  c6 {[%clk 0:02:59]} 7. d3 {[%clk 0:02:40]}  Nbd7 {[%clk 0:02:58]} 8. Nbd2 {[%clk 0:02:31]}  Re8 {[%clk 0:02:57]} 9. e4 {[%clk 0:02:15]}  dxe4 {[%clk 0:02:50]} 10. dxe4 {[%clk 0:02:14]}  Nf8 {[%clk 0:02:42]} 11. e5 {[%clk 0:02:08]}  Nd5 {[%clk 0:02:37]} 12. Qe2 {[%clk 0:02:07]}  Bg4 {[%clk 0:02:34]} 13. h3 {[%clk 0:02:05]}  Bxf3 {[%clk 0:02:34]} 14. Nxf3 {[%clk 0:02:05]}  Qc7 {[%clk 0:02:30]} 15. c4 {[%clk 0:02:02]}  Nb6 {[%clk 0:02:21]} 16. Rfe1 {[%clk 0:01:48]}  Rad8 {[%clk 0:02:16]} 17. h4 {[%clk 0:01:47]}  Ne6 {[%clk 0:02:01]} 18. Bh3 {[%clk 0:01:41]}  c5 {[%clk 0:01:56]} 19. Bxe6 {[%clk 0:01:40]}  fxe6 {[%clk 0:01:57]} 20. Ng5 {[%clk 0:01:38]}  Qc6 {[%clk 0:01:09]} 21. Qg4 {[%clk 0:01:25]}  Rd2 {[%clk 0:01:09]} 22. Bc3 {[%clk 0:01:15]}  Rc2 {[%clk 0:01:07]} 23. Rec1 {[%clk 0:01:15]}  Rxc3 {[%clk 0:01:02]} 24. Rxc3 {[%clk 0:01:13]}  Bxe5 {[%clk 0:01:02]} 25. Re3 {[%clk 0:01:01]}  Bxa1 {[%clk 0:00:58]} 26. Rxe6 {[%clk 0:01:01]}  Qd7 {[%clk 0:00:55]} 27. Nxh7 {[%clk 0:00:59]}  Qxe6 {[%clk 0:00:49]} 28. Qxe6+ {[%clk 0:00:57]}  Kxh7 {[%clk 0:00:50]} 29. Qf7+ {[%clk 0:00:57]} 1-0


[Site "https://www.chess.com"]